bitfinex/quotes_ETHUSD_20241124
["timestamp","ask_amount","ask_price","bid_price","bid_amount"]
[1732445448306,0.02669024,3368.0,3365.8,0.029698]
[1732445448307,0.55,3367.8,3367.5,0.2962]
[1732445448462,0.55,3367.8,3365.4,0.6399821]
[1732445448463,0.55,3367.6,3366.5,0.35779253]
[1732445448777,0.02669024,3367.5,3366.5,0.35779253]
[1732445449181,0.02669024,3367.5,3366.8,0.2962]
[1732445450318,0.0584,3367.4,3367.0,0.2962]
[1732445450617,0.55,3367.3,3367.0,0.2962]
[1732445450782,0.55,3367.3,3366.1,0.06159253]
[1732445450783,0.02646075,3367.2,3366.2,0.2962]
[1732445451172,0.02646075,3367.2,3366.1,0.06159253]
[1732445451374,0.02646075,3367.2,3366.4,0.06159253]
[1732445451711,0.02646075,3367.2,3366.0,0.8159]
[1732445452017,0.02646075,3367.2,3366.2,0.06159253]
[1732445452018,0.0584,3367.1,3366.2,0.06159253]
[1732445452315,0.55,3367.0,3366.4,3.0]
[1732445452619,0.55,3367.0,3366.4,3.06159253]
[1732445452827,0.55,3367.0,3366.4,3.0]
[1732445453113,0.55,3367.0,3366.0,0.06159253]
[1732445453501,0.02634739,3366.9,3366.4,3.0]
[1732445454017,0.55,3367.0,3366.4,3.0]
[1732445454576,0.55,3367.0,3366.3,0.06159253]
[1732445454876,0.02601869,3366.9,3366.4,3.0]
[1732445455077,0.02601869,3366.9,3366.3,0.06159253]
[1732445455398,0.02601869,3366.9,3366.4,3.0]
[1732445455597,0.0584,3367.6,3366.9,3.0]
[1732445455797,0.0584,3367.6,3367.0,0.06159253]
[1732445456014,0.0584,3367.6,3367.3,3.0]
[1732445456512,0.0584,3367.6,3367.0,0.06159253]
[1732445456877,0.0584,3367.6,3367.3,3.0]
[1732445457584,0.0584,3368.8,3367.2,0.06159253]
[1732445457787,0.55,3368.6,3367.2,0.06159253]
[1732445458019,0.0584,3368.7,3367.5,0.06159253]
[1732445458313,0.02614906,3368.5,3367.7,0.06159253]
[1732445458513,0.720848,3368.6,3367.9,3.06159253]
[1732445458713,0.0584,3368.7,3367.9,3.06159253]
[1732445458714,0.02622556,3368.4,3367.9,3.06159253]
[1732445459011,0.0584,3368.7,3368.1,3.0]
[1732445459216,0.0584,3368.7,3368.1,3.06159253]
[1732445459417,0.0584,3368.7,3368.1,3.0]
[1732445460180,0.0584,3369.3,3368.4,0.06159253]
[1732445460518,0.0584,3369.3,3368.3,3.0]
[1732445460716,0.0651,3368.9,3368.1,0.06159253]
[1732445460903,0.0651,3368.9,3368.3,3.0]
[1732445461107,0.0651,3368.9,3368.1,0.06159253]
[1732445461421,0.0651,3368.9,3368.1,3.0]
[1732445461618,0.59321675,3368.8,3368.1,3.0]
[1732445461915,0.59321675,3368.8,3367.4,0.06159253]
[1732445461916,0.55,3368.6,3367.4,0.06159253]
[1732445462214,0.55,3368.6,3367.8,3.0]
[1732445462419,0.0651,3368.3,3367.8,3.0]
[1732445462624,0.55,3368.2,3367.0,0.06159253]
[1732445462936,0.0651,3367.9,3367.0,0.06159253]
[1732445463217,6.5,3369.1,3367.0,0.06159253]
[1732445463218,0.0651,3367.7,3367.0,0.06159253]
[1732445463380,0.59321675,3367.6,3366.8,0.06159253]
[1732445464517,0.0651,3367.5,3367.1,3.0]
[1732445464735,0.0651,3367.5,3366.8,0.06159253]
[1732445464736,0.55,3367.4,3366.8,0.06159253]
[1732445465189,0.04321675,3367.3,3367.1,3.0]
[1732445465391,0.0651,3367.5,3366.8,0.06159253]
[1732445465621,0.04321675,3367.4,3366.8,0.06159253]
[1732445465915,0.04321675,3367.4,3365.9,0.8596]
[1732445465916,0.0651,3367.2,3366.3,0.06159253]
[1732445466122,0.55,3367.1,3366.0,0.06159253]
[1732445466617,6.5,3367.5,3365.3,0.06159253]
[1732445466618,0.0651,3366.8,3365.3,0.06159253]
[1732445466820,0.55,3366.5,3365.5,0.06159253]
[1732445467321,0.0651,3366.6,3365.7,0.06159253]
[1732445467616,0.55,3366.5,3364.9,0.8596]
[1732445467782,0.55,3366.5,3365.3,0.06159253]
[1732445467999,0.55,3366.3,3365.3,0.06159253]
[1732445468343,0.55,3366.3,3364.9,0.8596]
[1732445468344,0.55,3366.3,3365.7,0.06159253]
[1732445469037,0.0651,3366.4,3365.9,0.06159253]
[1732445469410,0.0651,3367.2,3366.3,3.06159253]
[1732445469899,0.0651,3367.2,3365.7,0.8596]
[1732445469900,0.0651,3367.2,3366.6,0.06159253]
[1732445470100,6.5651,3367.6,3366.8,0.06159253]
[1732445470303,0.65,3367.5,3366.8,0.06159253]
[1732445470615,0.0651,3367.6,3366.6,3.0]
[1732445471345,0.55,3367.5,3366.4,0.35749253]
[1732445471640,0.55,3367.5,3366.7,0.06159253]
[1732445472026,0.0651,3367.6,3366.7,0.06159253]
[1732445472203,0.0651,3367.6,3366.9,3.0]
[1732445472398,0.0651,3367.6,3367.2,3.0]
[1732445472605,0.0651,3367.6,3366.9,0.06159253]
[1732445472848,0.0651,3367.6,3367.2,3.0]
[1732445473136,0.0651,3368.6,3367.3,3.0]
[1732445473341,0.780108,3368.6,3367.3,3.0]
[1732445473539,0.0651,3368.6,3367.1,0.06159253]
[1732445473742,0.0651,3368.6,3367.3,3.0]
[1732445474206,0.55,3368.5,3367.3,3.0]
[1732445474401,0.0651,3368.6,3367.9,0.06159253]
[1732445474845,0.0651,3368.6,3367.9,3.06159253]
[1732445475585,0.0651,3368.6,3367.9,0.06159253]
[1732445475847,0.0651,3368.6,3368.1,0.06159253]
[1732445476053,0.0651,3368.6,3368.2,3.0]
[1732445476205,0.0008,3369.0,3368.7,0.06159253]
[1732445477146,0.0008,3369.0,3368.8,3.0]
[1732445477351,0.0008,3369.0,3368.4,0.06159253]
[1732445477520,0.0008,3369.0,3368.6,0.06159253]
[1732445477717,0.0008,3369.0,3368.8,3.06159253]
[1732445478122,0.0008,3369.0,3368.9,3.0]
[1732445478522,0.0008,3369.0,3368.8,0.06159253]
[1732445483177,0.0651,3370.2,3369.8,3.0]
[1732445483673,0.0651,3370.2,3369.6,0.06159253]
[1732445485487,0.02613387,3370.1,3369.6,0.06159253]
[1732445486078,0.57613387,3370.1,3369.5,3.0]
[1732445486245,0.02613387,3370.1,3369.5,3.06159253]
[1732445486641,0.02613387,3370.1,3369.7,0.06159253]
[1732445488049,0.02613387,3370.1,3369.4,0.8588]
[1732445488050,0.02613387,3370.1,3369.9,3.06159253]
[1732445488251,0.0651,3370.6,3369.9,3.06159253]
[1732445488451,0.0353396,3370.5,3369.9,3.06159253]
[1732445488684,0.0004396,3370.6,3369.9,3.06159253]
[1732445488902,0.0004396,3370.6,3370.1,0.06159253]
[1732445489396,0.55,3371.0,3370.1,0.06159253]
[1732445489705,1.2,3371.0,3370.1,0.06159253]
[1732445490396,1.2,3371.0,3369.9,0.06159253]
[1732445490626,1.2,3371.0,3370.1,0.06159253]
[1732445490795,0.55,3370.8,3370.1,0.06159253]
[1732445491094,0.55,3370.8,3370.2,0.2959]
[1732445492599,0.55,3371.1,3370.3,0.2959]
[1732445492768,1.2,3371.1,3370.3,0.2959]
[1732445493370,7.7,3371.1,3370.0,0.2959]
[1732445493571,7.05,3371.1,3370.0,0.2959]
[1732445493890,7.05,3371.1,3369.7,0.06159253]
[1732445494064,7.05,3371.1,3369.9,3.0]
[1732445494415,0.55,3370.9,3370.0,0.2959]
[1732445494618,0.55,3370.9,3370.0,0.35749253]
[1732445494774,0.55,3370.9,3370.0,0.06159253]
[1732445495426,0.55,3370.9,3370.1,0.2959]
[1732445496677,0.55,3371.1,3370.1,0.2959]
[1732445496877,0.55,3370.9,3370.1,0.2959]
[1732445497292,0.1,3371.8,3370.3,0.06159253]
[1732445497293,0.55,3371.1,3370.3,0.06159253]
[1732445497974,0.55,3371.1,3370.2,0.2959]
[1732445498187,0.55,3371.1,3370.2,3.35749253]
[1732445498483,0.55,3371.1,3370.2,0.35749253]
[1732445498713,0.55,3371.1,3370.2,3.35749253]
[1732445498920,0.55,3371.1,3370.2,0.35749253]
[1732445499211,0.55,3371.1,3370.5,0.2959]
[1732445499415,0.54999984,3371.1,3370.4,0.06159253]
[1732445500515,0.54999984,3371.1,3370.4,0.35749253]
[1732445500710,0.54999984,3371.1,3370.4,0.2959]
[1732445501625,0.54999984,3371.1,3370.3,0.2959]
[1732445501947,0.54999984,3371.1,3370.4,0.8232]
[1732445502108,0.54999984,3371.1,3370.3,0.2959]
[1732445503052,6.5,3371.6,3370.6,0.35749253]
[1732445503221,6.5,3371.6,3370.8,0.8232]
[1732445503407,0.1398,3371.9,3370.8,0.88359253]
[1732445505046,0.55,3371.8,3371.0,0.2959]
[1732445505198,0.1398,3371.9,3371.0,0.2959]
[1732445505746,0.80378,3371.9,3371.0,0.2959]
[1732445506042,0.80378,3371.9,3370.9,3.2959]
[1732445506240,0.80378,3371.9,3370.9,0.2959]
[1732445506606,0.55,3371.8,3370.9,0.2959]
[1732445506950,0.55,3371.8,3370.9,3.2959]
[1732445507114,0.55,3371.8,3370.9,0.2959]
[1732445507302,0.55,3372.2,3370.9,0.2959]
[1732445507505,0.1398,3372.3,3371.5,0.2959]
[1732445507506,0.55,3372.0,3371.5,0.2959]
[1732445508512,0.55,3372.2,3370.9,0.2959]
[1732445508908,0.55,3372.2,3371.4,3.0]
[1732445509106,0.55,3372.2,3370.8,0.58769253]
[1732445509349,0.55,3372.2,3371.4,3.0]
[1732445509560,0.1398,3371.9,3370.5,0.2959]
[1732445509719,0.55,3371.6,3370.5,0.2959]
[1732445510053,0.1398,3371.7,3370.2,0.2959]
[1732445510215,0.55,3371.6,3370.2,0.2959]
[1732445510417,7.05,3371.6,3370.2,0.2959]
[1732445510616,0.55,3371.4,3370.2,0.2959]
[1732445511062,0.55,3371.2,3369.4,0.2959]
[1732445511727,0.55,3370.8,3369.4,0.2959]
[1732445511930,6.5,3371.3,3369.3,0.8036]
[1732445511931,0.55,3370.6,3369.3,0.8036]
[1732445512256,0.55,3370.2,3368.9,0.8036]
[1732445512816,0.55,3370.2,3368.2,0.2959]
[1732445512817,0.55,3370.0,3368.2,0.2959]
[1732445513023,0.55,3370.0,3368.3,0.02968153]
[1732445513558,0.55,3370.0,3368.5,0.2959]
[1732445513760,0.55,3370.0,3368.7,0.2959]
[1732445514146,0.1398,3370.1,3368.6,0.1797525]
[1732445514147,0.1398,3370.1,3369.0,0.2959]
[1732445514346,0.55,3369.8,3367.9,0.02967827]
[1732445514513,0.1398,3369.6,3367.8,1.0995]
[1732445514721,0.55,3369.5,3367.8,1.48077342]
[1732445514920,0.55,3369.5,3367.8,1.45108822]
[1732445515158,0.55,3369.5,3367.8,1.0995]
[1732445515470,0.55,3369.5,3367.8,1.12918774]
[1732445516244,0.55,3369.5,3367.8,0.83328774]
[1732445516725,6.5,3370.1,3367.8,0.8036]
[1732445516726,0.55,3369.1,3367.8,0.8036]
[1732445517137,0.55,3368.9,3367.6,2.16]
[1732445517337,0.55,3368.7,3367.4,0.8036]
[1732445517625,0.55,3368.5,3367.4,0.8036]
[1732445518168,0.55,3368.5,3367.5,0.02969242]
[1732445518358,0.71898,3368.6,3367.5,0.02969242]
[1732445518524,0.1398,3368.8,3367.5,0.02969242]
[1732445518726,0.1398,3368.8,3368.3,3.0]
[1732445518923,0.1398,3368.8,3368.6,3.0]
[1732445519128,0.1398,3369.5,3368.2,0.8036]
[1732445519355,0.7898,3369.5,3368.6,3.0]
[1732445519523,0.1398,3369.5,3368.2,0.8036]
[1732445519724,0.1398,3369.5,3368.6,3.0]
[1732445520228,0.1398,3369.5,3368.2,0.8036]
[1732445520438,0.1398,3369.5,3368.6,3.0]
[1732445520641,0.1398,3369.5,3368.2,0.8036]
[1732445521266,0.1398,3369.5,3368.6,3.0]
[1732445521442,0.1398,3369.5,3368.2,0.8036]
[1732445521443,0.55,3369.4,3368.2,0.8036]
[1732445523353,0.1398,3369.3,3368.6,3.0]
[1732445523673,0.55,3368.6,3366.5,0.7725]
[1732445523826,0.55,3368.6,3366.4,0.1]
[1732445523827,0.55,3368.6,3366.7,0.7725]
[1732445524155,0.55,3368.6,3366.8,0.02969297]
[1732445524480,0.1398,3368.7,3366.9,1.22069498]
[1732445524685,0.1398,3368.7,3367.0,0.80218903]
[1732445525085,0.1398,3368.7,3368.3,3.0]
[1732445525374,0.1398,3368.5,3368.0,3.0]
[1732445525672,0.55,3368.4,3368.0,3.0]
[1732445526050,0.1398,3368.5,3368.0,3.0]
[1732445526248,0.55,3368.4,3368.0,3.0]
[1732445526479,0.55,3368.4,3367.7,0.2959]
[1732445526648,0.55,3368.4,3368.0,3.0]
[1732445527054,0.55,3368.4,3367.7,0.2959]
[1732445527292,0.55,3368.4,3367.9,3.0]
[1732445527787,0.55,3368.4,3367.1,0.32559389]
[1732445527947,0.55,3368.4,3367.9,3.0]
[1732445528146,0.55,3368.4,3367.1,0.32559287]
[1732445528341,0.1398,3368.5,3367.9,3.0]
[1732445528543,0.1398,3368.5,3368.0,3.0]
[1732445528895,0.1398,3368.5,3367.1,0.32559287]
[1732445529259,0.1398,3368.5,3368.2,3.0]
[1732445529663,0.1398,3368.5,3367.3,0.32558978]
[1732445529974,0.1398,3368.5,3368.2,3.0]
[1732445530178,0.1398,3368.5,3368.3,3.0]
[1732445530470,0.6898,3369.4,3368.3,3.0]
[1732445530677,0.6898,3369.4,3367.6,0.02968881]
[1732445530852,0.6898,3369.4,3368.3,3.0]
[1732445531184,0.6898,3369.4,3367.5,0.32558918]
[1732445531494,0.55,3369.6,3368.2,3.0]
[1732445531651,0.1398,3369.5,3367.5,0.2959]
[1732445531852,0.1398,3369.3,3368.2,3.0]
[1732445532146,0.1398,3369.1,3368.2,3.0]
[1732445532401,0.6898,3369.0,3368.2,3.0]
[1732445532549,0.55,3368.8,3368.2,3.0]
[1732445533221,0.55,3368.8,3367.5,0.2959]
[1732445533393,0.55,3368.8,3368.2,3.0]
[1732445533559,0.55,3368.8,3367.5,0.2959]
[1732445533988,0.55,3368.8,3368.2,3.0]
[1732445534289,0.55,3368.8,3367.5,0.3255903]
[1732445534487,0.55,3368.8,3368.1,3.0]
[1732445534784,0.55,3368.8,3368.4,3.0]
[1732445536161,0.55,3368.8,3367.5,0.32558935]
[1732445536361,0.55,3368.8,3368.2,3.0]
[1732445537062,0.55,3368.8,3367.5,0.2959]
[1732445537257,0.55,3368.8,3368.2,3.0]
[1732445537958,0.55,3368.8,3367.5,0.2959]
[1732445538159,0.55,3368.8,3368.5,3.0]
[1732445538361,0.55,3368.8,3367.5,0.32558893]
[1732445538586,0.55,3368.8,3367.5,0.2959]
[1732445538790,0.55,3368.8,3368.5,3.0]
[1732445538990,0.55,3368.8,3367.5,0.2959]
[1732445539153,0.55,3368.8,3368.5,3.0]
[1732445539720,0.55,3368.8,3367.5,0.02968892]
[1732445539921,0.1398,3369.0,3367.6,1.1237]
[1732445540103,0.1398,3369.0,3368.7,3.0]
[1732445540275,0.1398,3369.0,3367.7,0.02968639]
[1732445540276,0.1398,3369.0,3368.8,3.2959]
[1732445540475,0.1398,3369.0,3368.8,0.2959]
[1732445541085,0.1398,3369.0,3368.8,3.2959]
[1732445541495,0.1398,3369.0,3368.9,0.2959]
[1732445541878,0.1398,3369.4,3369.1,3.0]
[1732445542231,0.1398,3369.4,3368.9,0.2959]
[1732445542521,0.1398,3369.4,3368.3,0.8278]
[1732445542522,0.1398,3369.4,3369.2,3.0]
[1732445542822,0.1398,3369.4,3368.4,0.32558222]
[1732445542978,0.1398,3369.4,3368.4,0.2959]
[1732445543178,0.1398,3369.4,3368.4,0.32558107]
[1732445543426,0.1398,3369.4,3369.2,3.0]
[1732445544215,6.5,3370.5,3368.4,0.32558107]
[1732445544216,0.1398,3369.7,3368.4,0.32558107]
[1732445544422,0.1398,3369.7,3369.5,3.0]
[1732445544620,0.1398,3370.3,3369.5,3.0]
[1732445544780,0.1398,3370.3,3369.1,0.8278]
[1732445544974,0.1398,3370.3,3369.7,3.0]
[1732445545277,0.1398,3370.3,3369.2,0.2959]
[1732445545673,0.1398,3370.3,3370.1,3.0]
[1732445545914,0.1398,3370.3,3369.2,0.32557512]
[1732445546074,0.1398,3370.9,3370.1,3.0]
[1732445546277,0.1398,3370.8,3370.1,3.0]
[1732445546479,0.1398,3370.8,3369.2,0.2959]
[1732445546875,0.1398,3370.8,3370.1,3.0]
[1732445547598,0.55,3370.7,3370.1,3.0]
[1732445548326,0.55,3370.7,3369.2,0.32557255]
[1732445548493,0.55,3370.7,3370.1,3.0]
[1732445548886,0.55,3370.5,3370.1,3.0]
[1732445549399,0.55,3370.5,3369.2,0.32557416]
[1732445549600,0.55,3370.5,3369.9,0.8007]
[1732445549785,0.55,3370.5,3370.1,3.0]
[1732445550487,0.55,3370.5,3369.9,0.8007]
[1732445551004,0.55,3370.5,3370.2,3.0]
[1732445551196,0.55,3370.5,3369.9,0.8007]
[1732445551588,0.55,3370.5,3370.2,3.0]
[1732445552030,0.55,3370.5,3369.9,0.8007]
[1732445552206,0.1398,3371.6,3370.2,3.0]
[1732445552383,0.1398,3371.6,3370.6,3.0]
[1732445552384,0.7898,3371.6,3370.6,3.0]
[1732445552819,0.7898,3371.6,3370.0,0.02966823]
[1732445553085,0.7898,3371.6,3371.1,3.0]
[1732445553502,0.1398,3371.6,3371.1,3.0]
[1732445554388,0.1398,3371.6,3370.2,0.02966338]
[1732445554627,0.1398,3371.6,3370.1,1.0966]
[1732445554794,0.1398,3371.6,3371.1,3.0]
[1732445555534,0.55,3371.3,3369.6,0.8007]
[1732445555688,0.1398,3371.2,3369.6,0.8007]
[1732445555894,0.55,3370.9,3370.7,3.0]
[1732445556223,0.1398,3370.8,3369.7,0.2959]
[1732445556733,0.1398,3370.7,3369.7,0.2959]
[1732445557230,0.1398,3370.7,3369.3,0.8007]
[1732445557231,0.1398,3370.7,3369.4,0.2959]
[1732445558103,0.55,3370.6,3369.2,0.00744369]
[1732445558422,0.1398,3370.3,3370.0,3.0]
[1732445558629,0.55,3370.2,3369.2,0.00744369]
[1732445558803,0.55,3370.2,3370.0,3.0]
[1732445559687,0.1398,3370.3,3370.0,3.0]
[1732445559896,0.1398,3370.3,3369.4,0.2959]
[1732445560399,0.1398,3370.3,3370.1,3.0]
[1732445560988,0.1398,3371.2,3370.1,3.0]
[1732445561209,0.7898,3371.2,3369.4,0.2959]
[1732445561490,0.7898,3371.2,3370.5,3.0]
[1732445561709,0.1398,3371.2,3370.5,3.0]
[1732445562034,0.1398,3371.2,3369.5,0.02967157]
[1732445562242,0.1398,3371.2,3370.5,3.0]
[1732445562649,0.1398,3371.1,3370.5,3.0]
[1732445563004,0.1398,3371.1,3369.7,1.183828]
[1732445563248,0.55,3371.0,3370.5,3.0]
[1732445563536,0.55,3370.8,3369.4,1.50939977]
[1732445563701,0.55,3370.8,3369.4,1.479728]
[1732445564114,0.55,3370.8,3370.3,3.0]
[1732445564340,0.55,3370.8,3369.4,1.479728]
[1732445565152,0.55,3370.8,3370.3,3.0]
[1732445566116,0.1398,3370.7,3370.3,3.0]
[1732445566317,0.55,3370.6,3370.3,3.0]
[1732445567240,0.55,3370.6,3369.4,0.32557319]
[1732445567538,0.1398,3370.7,3369.5,0.55369444]
[1732445567947,0.1398,3370.7,3369.6,0.7939]
[1732445568156,0.1398,3370.7,3369.7,0.2959]
[1732445568317,0.1398,3370.7,3369.7,0.73065944]
[1732445569149,0.1398,3370.7,3369.7,0.2959]
[1732445569312,0.55,3370.6,3369.7,0.2959]
[1732445569717,0.55,3370.6,3369.3,1.183946]
[1732445570024,0.1398,3370.3,3370.1,3.0]
[1732445570232,0.55,3370.2,3369.2,0.32557533]
[1732445570426,0.55,3370.2,3369.2,0.44685213]
[1732445570626,0.55,3370.2,3370.1,3.0]
[1732445571026,0.55,3370.2,3369.1,0.32557484]
[1732445571360,0.55,3370.2,3369.1,0.2959]
[1732445571523,0.55,3370.2,3370.1,3.0]
[1732445571716,0.55,3370.2,3369.3,0.2959]
[1732445572561,0.55,3370.2,3369.4,0.2959]
[1732445572916,0.55,3370.2,3370.1,3.0]
[1732445573458,0.55,3370.2,3369.6,0.2959]
[1732445574223,0.55,3370.2,3370.1,3.0]
[1732445574449,0.55,3370.2,3369.6,0.2959]
[1732445574759,0.55,3370.2,3370.1,3.0]
[1732445575065,0.55,3370.2,3369.6,0.2959]
[1732445575968,0.55,3370.2,3368.4,0.12967704]
[1732445575969,0.55,3370.2,3370.1,3.0]
[1732445576457,0.55,3370.2,3368.8,0.02967534]
[1732445576833,0.55,3370.2,3368.7,0.2959]
[1732445577040,0.55,3370.0,3368.7,0.2959]
[1732445577238,0.1398,3369.9,3368.7,0.2959]
[1732445577452,0.55,3369.7,3367.9,0.2959]
[1732445577656,0.1398,3369.7,3367.9,0.2959]
[1732445577966,0.55,3369.4,3367.9,0.2959]
[1732445578128,0.55,3369.1,3367.9,0.2959]
[1732445578328,0.6898,3369.5,3367.5,0.2959]
[1732445578528,0.71898,3369.4,3367.6,0.0296886]
[1732445578728,0.55,3369.3,3367.6,0.0296886]
[1732445578964,0.55,3369.1,3367.6,0.0296886]
[1732445579339,0.55,3369.1,3367.8,0.2959]
[1732445579567,0.55,3369.1,3367.9,0.02968587]
[1732445580072,0.55,3369.1,3368.7,3.0]
[1732445580300,0.55,3369.1,3367.9,0.02968587]
[1732445580572,0.55,3369.1,3367.8,0.32558586]
[1732445581371,0.55,3369.1,3367.8,0.2959]
[1732445581736,0.55,3369.1,3367.9,0.02968761]
[1732445582137,0.55,3369.1,3367.8,0.32558762]
[1732445582473,0.55,3369.1,3367.9,0.3508747]
[1732445582629,0.55,3369.1,3368.0,0.32558576]
[1732445583086,6.5,3369.8,3369.7,8.6402]
[1732445583376,6.5,3370.6,3369.4,3.0]
[1732445583570,6.5,3370.6,3368.7,0.02967974]
[1732445583790,0.65,3370.5,3369.4,3.0]
[1732445584370,0.65,3370.5,3369.9,3.0]
[1732445584600,6.5,3370.9,3369.9,3.0]
[1732445585053,6.5,3370.9,3369.2,1.0617]
[1732445585784,6.5,3371.1,3370.4,3.0]
[1732445586296,6.5,3371.1,3370.2,3.0]
[1732445586446,6.5,3371.3,3369.2,1.0617]
[1732445586647,0.65,3371.0,3369.2,1.0617]
[1732445586986,0.65,3371.0,3370.2,3.0]
[1732445587283,0.55,3370.9,3370.2,3.0]
[1732445587500,0.55,3370.9,3369.3,0.02967481]
[1732445587788,0.55,3370.9,3369.2,1.0617]
[1732445587789,0.55,3370.9,3370.2,3.0]
[1732445587985,0.55,3370.9,3369.2,1.0617]
[1732445587986,0.55,3370.9,3369.3,0.02967341]
[1732445588145,0.55,3370.9,3370.2,3.0]
[1732445588342,0.55,3370.9,3369.3,0.02967341]
[1732445588554,0.55,3370.9,3369.2,1.0617]
[1732445588788,0.55,3370.9,3370.2,3.0]
[1732445589458,0.55,3370.9,3369.3,0.0296734]
[1732445589665,0.55,3371.1,3370.2,3.0]
[1732445589868,1.2,3371.1,3369.3,0.0296734]
[1732445590193,0.55,3370.9,3370.2,3.0]
[1732445590582,0.55,3370.9,3369.3,0.0296734]
[1732445590904,0.55,3370.9,3369.2,1.0617]
[1732445590905,0.55,3370.9,3370.2,3.0]
[1732445591098,0.55,3370.9,3369.3,0.02967372]
[1732445591272,0.55,3370.9,3370.2,3.0]
[1732445591472,0.55,3371.1,3369.2,1.0617]
[1732445591660,0.705,3371.0,3370.2,3.0]
[1732445591862,0.55,3370.9,3370.2,3.0]
[1732445592061,0.55,3370.9,3369.2,1.0617]
[1732445592266,0.55,3370.9,3370.2,3.0]
[1732445592466,0.55,3371.0,3370.2,3.0]
[1732445592668,0.55,3370.8,3370.2,3.0]
[1732445593105,0.55,3370.8,3369.3,0.0296737]
[1732445593405,0.55,3370.8,3370.2,3.0]
[1732445593587,0.55,3371.1,3370.2,3.0]
[1732445593789,1.2,3371.1,3369.2,1.0617]
[1732445593990,1.2,3371.1,3370.2,3.0]
[1732445594167,1.2,3371.1,3369.3,0.02967388]
[1732445594367,0.55,3370.9,3369.2,1.0617]
[1732445594595,0.55,3370.9,3370.2,3.0]
[1732445594986,0.55,3370.9,3369.3,0.02967411]
[1732445595194,0.55,3370.9,3370.2,3.0]
[1732445595394,0.55,3371.2,3370.2,3.0]
[1732445595609,0.55,3371.0,3370.2,3.0]
[1732445596412,0.55,3371.0,3369.3,0.02967403]
[1732445596595,0.55,3371.1,3370.2,3.0]
[1732445596903,0.55,3370.9,3370.2,3.0]
[1732445597208,0.55,3370.9,3369.2,1.0617]
[1732445597570,0.55,3370.9,3370.2,3.0]
[1732445597907,0.55,3370.9,3368.8,0.7658]
[1732445597908,0.55,3370.9,3370.1,3.0]
[1732445598106,0.55,3370.9,3369.1,0.0296755]
[1732445598302,0.55,3370.9,3370.1,3.0]
[1732445598492,7.05,3370.9,3369.1,0.0296755]
[1732445598708,0.55,3370.7,3368.9,0.2959]
[1732445598886,0.55,3370.7,3370.1,3.0]
[1732445599081,0.55,3370.7,3369.0,0.02967593]
[1732445599269,1.332705,3370.7,3370.1,3.0]
[1732445599477,1.332705,3370.7,3369.0,0.02967593]
[1732445599680,0.55,3371.0,3370.1,3.0]
[1732445600494,0.55,3371.0,3369.0,0.02967593]
[1732445600698,0.55,3371.0,3368.9,0.2959]
[1732445600898,0.55,3371.0,3370.1,3.0]
[1732445601110,0.55,3370.8,3369.0,0.0296753]
[1732445601293,0.55,3370.8,3370.1,3.0]
[1732445601494,0.55,3370.6,3370.1,3.0]
[1732445602013,0.55,3370.6,3369.0,0.0296753]
[1732445602317,0.55,3370.6,3370.1,3.0]
[1732445603514,0.55,3370.6,3369.6,0.2959]
[1732445603871,6.5,3371.2,3369.6,0.2959]
[1732445604070,0.65,3371.1,3369.6,0.2959]
[1732445604269,0.65,3371.1,3370.3,3.0]
[1732445604711,6.5,3371.6,3370.3,3.0]
[1732445604928,6.5,3371.6,3369.6,0.2959]
[1732445605076,6.5,3371.6,3370.3,3.0]
[1732445605414,0.55,3371.3,3370.3,3.0]
[1732445605714,0.55,3371.1,3369.6,0.2959]
[1732445606013,0.55,3371.1,3370.3,3.0]
[1732445606218,0.55,3371.1,3369.6,0.2959]
[1732445606404,0.55,3371.1,3370.3,3.0]
[1732445606603,0.55,3370.9,3369.6,0.2959]
[1732445606917,0.55,3370.9,3370.3,3.0]
[1732445607224,0.55,3370.9,3369.6,0.2959]
[1732445607513,0.55,3370.9,3370.3,3.0]
[1732445607818,0.55,3370.9,3369.6,0.2959]
[1732445608115,0.55,3370.9,3370.3,3.7679]
[1732445608326,0.55,3370.9,3370.4,0.37679]
[1732445608499,0.55,3370.9,3370.6,3.0]
[1732445609273,0.55,3370.9,3369.9,0.2959]
[1732445609475,0.55,3370.9,3369.5,0.7679]
[1732445609476,0.55,3370.9,3370.6,3.0]
[1732445610272,0.55,3370.9,3369.6,0.32557067]
[1732445610476,0.55,3370.9,3370.6,3.0]
[1732445610676,0.55,3370.9,3369.6,0.32557065]
[1732445610875,0.55,3370.9,3369.6,0.2959]
[1732445611500,0.55,3370.9,3370.6,3.0]
[1732445612018,0.55,3370.9,3369.6,0.32557064]
[1732445612377,0.55,3370.9,3370.6,3.0]
[1732445612992,0.55,3370.9,3369.6,0.32557064]
[1732445613223,0.55,3370.9,3370.6,3.0]
[1732445613421,0.55,3370.9,3369.8,0.02966992]